Cogmind - Beta 12 @@@ ROGUE MODE // 2023.03.09 @ 16:44:12 Player: Terminus Result: Destroyed by B-36 Bruiser with Hammer Performance ------------- Evolutions (1) 500 Regions Visited (5) 1000 Robots Destroyed (89) 445 Value Destroyed (2230) 2230 Prototype IDs (29) 580 Alien Tech Used (0) 0 Bonus (793) 793 TOTAL SCORE: 5548 Bonus ------- High Alert Combat Kills 493 Aligned with FarCom 300 Cogmind --------- Core Integrity 0/400 Matter 120/300 Energy 99/100 System Corruption 6% Temperature Cool (0) Movement Walking (190) Ox1 Location -8/Mines Parts ------- > --- POWER (1) -------- (None) > --- PROPULSION (2) --- Advanced Myomer Leg Advanced Myomer Leg > --- UTILITY (3) ------ Huge Storage Unit Hardened Light Armor Plating Improved Light Armor Plating > --- WEAPON (3) ------- Beam Rifle Improved Medium Laser > --- INVENTORY (25) --- Heavy Ion Engine Heavy Ion Engine Reinforced Fission Core Advanced Treads Advanced Treads Advanced Treads Advanced Treads Improved Heat Sink Experimental Heat Sink Cooling System Large Matter Pod (0) Machine Analyzer Experimental Targeting Computer Advanced Weapon Cycler Shield Generator AS-neutralizer No. 17b Beam Rifle Plasma Cutter Peak State ------------ > --- POWER ------------ Heavy Ion Engine > --- PROPULSION ------- Advanced Myomer Leg Advanced Myomer Leg > --- UTILITY ---------- Experimental Heat Sink Huge Storage Unit Cloak of Protection > --- WEAPON ----------- Improved Medium Laser Heavy Assault Rifle Heavy Assault Rifle > --- INVENTORY -------- Heavy Ion Engine Heavy Ion Engine Reinforced Fission Core Advanced Treads Advanced Treads Advanced Treads Advanced Treads Improved Heat Sink Cooling System Large Matter Pod Machine Analyzer Experimental Targeting Computer Advanced Weapon Cycler Hardened Light Armor Plating Improved Light Armor Plating Improved Light Armor Plating Improved Light Armor Plating Shield Generator AS-neutralizer No. 17b Beam Rifle Beam Rifle Plasma Cutter [Rating: 49] Favorites ----------- Power Heavy Ion Engine Engine Heavy Ion Engine Propulsion Light Treads Treads Light Treads Leg Advanced Myomer Leg Utility Huge Storage Unit Device Improved Heat Sink Storage Huge Storage Unit Protection Hardened Light Armor Plating Weapon Autogun Energy Gun Improved Medium Laser Ballistic Gun Autogun Launcher Mini Grenade Launcher Special Weapon Plasma Cutter Build | -11 -10 -9 -9 -9 -8 ------- Run | Jun Mat Mat Min Exi Min Slots Evolved 2 | . . 2 . . . Power . | . . . . . . Propulsion . | . . . . . . Utility 1 | . . 1 . . . Weapon 1 | . . 1 . . . Parts Attached 76 | 6 16 23 . 25 6 Power 5 | 1 3 1 . . . Engine 5 | 1 3 1 . . . Core . | . . . . . . Reactor . | . . . . . . Propulsion 19 | 2 7 7 . 3 . Treads 17 | 2 7 7 . 1 . Leg 2 | . . . . 2 . Wheel . | . . . . . . Hover . | . . . . . . Flight . | . . . . . . Utility 22 | 1 3 6 . 9 3 Device 9 | . 1 3 . 5 . Storage 4 | 1 2 1 . . . Processor . | . . . . . . Hackware . | . . . . . . Protection 9 | . . 2 . 4 3 Artifact . | . . . . . . Weapon 30 | 2 3 9 . 13 3 Energy Gun 11 | . 1 4 . 5 1 Energy Cannon . | . . . . . . Ballistic Gun 15 | 2 2 4 . 5 2 Ballistic Cannon . | . . . . . . Launcher 3 | . . 1 . 2 . Special Weapon 1 | . . . . 1 . Impact Weapon . | . . . . . . Slashing Weapon . | . . . . . . Piercing Weapon . | . . . . . . Special Melee Weapon . | . . . . . . Unidentified Prototypes 6 | . . 2 . 4 . Parts Lost 19 | . 6 2 . 6 5 Power 2 | . 1 . . . 1 Propulsion 5 | . 3 1 . 1 . Utility 3 | . . . . 1 2 Weapon 9 | . 2 1 . 4 2 Highest Loss Streak 5 | . 2 2 . 5 5 To Critical Strikes 4 | . . . . 4 . Average Slot Usage (%) 98 | . 94 99 100 98 94 Engine 11 | . 13 11 11 11 9 Treads 22 | . 27 21 22 21 . Device 11 | . 9 12 11 10 7 Storage 11 | . 14 11 11 11 11 Protection 8 | . . 9 11 10 13 Energy Gun 9 | . . 12 11 9 28 Ballistic Gun 22 | . 27 20 22 22 1 Naked Turns . | . . . . . . Heaviest Build 112 | 12 32 103 103 112 102 Greatest Support 60 | 40 40 44 43 60 60 Greatest Overweight (x) 3 | 2 2 2 2 3 1 Average Overweight (x) 1 | . . 1 2 1 1 Largest Inventory Capacity 25 | 8 15 25 25 25 25 Average Capacity 22 | 7 13 23 25 25 25 Most Carried 25 | 2 14 25 25 25 21 Average Carried 20 | 1 8 21 25 22 20 Final Capacity 25 | 8 15 25 25 25 25 Final Carried 25 | 2 10 25 25 21 18 Class Distribution -------------------- 74% | Tank 16% | Mutant 5% | Gunner 3% | Scavenger-Gunner Dominant Class ---------------- Mutant | -10/Materials Tank | -9/Materials Tank | -9/Mines Tank | -9/Exiles Scavenger-Tank | -8/Mines Resources | -11 -10 -9 -9 -9 -8 ----------- Run | Jun Mat Mat Min Exi Min Matter Collected 2385 | 245 586 1000 8 546 . Remotely . | . . . . . . Salvage Created 3621 | . 1237 2163 99 122 . Parts 195 | . 75 109 3 8 . Haulers Intercepted 8 | . 2 6 . . . Recyclers Shooed 4 | . 4 . . . . Parts Field Recycled . | . . . . . . Retrieved Matter . | . . . . . . Parts Self-Destructed . | . . . . . . Prevented . | . . . . . . Kills | -11 -10 -9 -9 -9 -8 ------- Run | Jun Mat Mat Min Exi Min Combat Hostiles Destroyed 63 | . 24 35 . 4 . Guns 58 | . 24 33 . 1 . Cannons 1 | . . . . 1 . AOE 4 | . . 2 . 2 . Classes Destroyed 13 | . 6 6 . 1 . Worker 1 | . . 1 . . . Builder 5 | . 2 3 . . . Hauler 8 | . 2 6 . . . Recycler 7 | . 1 5 1 . . Mechanic 2 | . 1 1 . . . Operator 1 | . . 1 . . . Watcher 6 | . 1 5 . . . Swarmer 6 | . . 6 . . . Grunt 42 | . 24 18 . . . Brawler 2 | . . 2 . . . Duelist 2 | . . 2 . . . Sentry 7 | . . 7 . . . Assembled 3 | . . . . 3 . Best Kill Streak 9 | . 9 8 1 2 . Combat Bots Only 9 | . 9 8 . 2 . Max Kills in Single Turn 3 | . 2 3 1 2 . Gunslinging . | . . . . . . Exploded 2 | . . 1 . 2 . Melee . | . . . . . . Uniques/NPCs Destroyed 1 | . . . . 1 . 8R-AWN (-9/Exiles) Combat | -11 -10 -9 -9 -9 -8 -------- Run | Jun Mat Mat Min Exi Min Damage Taken 4430 | . 1216 900 . 1372 942 Core 666 | . 239 130 . 127 170 Absorbed by Shields . | . . . . . . Regen/Repaired (Parts) 90 | . 51 39 . . . Core Remaining (%) 52 | 100 4 . . . . Volleys Fired 242 | . 99 98 1 42 2 Largest 3 | . 2 3 3 3 3 Hottest 135 | . 70 130 102 102 135 Shots Fired 603 | . 198 286 3 111 5 Gun 590 | . 198 282 3 102 5 Cannon . | . . . . . . Launcher 7 | . . 4 . 3 . Special 6 | . . . . 6 . Kinetic 435 | . 191 139 2 100 3 Thermal 161 | . 7 143 1 8 2 Explosive 7 | . . 4 . 3 . Electromagnetic . | . . . . . . Robot Hit Streak 26 | . 12 26 23 24 6 Robot Miss Streak 4 | . 4 3 . 2 . Penetration Max . | . . . . . . Secondary Targets 3 | . 2 1 . . . Max Gunslinging Chain 1 | . 1 1 . . . Shots Hit Robots 399 | . 130 179 1 84 5 Core Hits 154 | . 55 78 1 20 . Critical Kills . | . . . . . . Critical Parts Destroyed 2 | . . 1 . 1 . Critical Strikes 18 | . 1 14 . 2 1 Burn 16 | . 1 13 . 1 1 Destroy 2 | . . 1 . 1 . Melee Attacks . | . . . . . . Impact . | . . . . . . Slashing . | . . . . . . Piercing . | . . . . . . Sneak Attacks . | . . . . . . Combat Hostiles . | . . . . . . Follow-up Attacks . | . . . . . . Damage Inflicted 6664 | . 1904 3207 31 1461 61 Guns 5429 | . 1602 2558 18 1190 61 Cannons . | . . . . . . Explosions 1123 | . 275 622 . 226 . Melee . | . . . . . . Ramming 67 | . 27 27 13 . . Kinetic 3827 | . 1540 1085 . 1156 46 Thermal 1922 | . 337 1473 18 79 15 Explosive 848 | . . 622 . 226 . Electromagnetic . | . . . . . . Impact . | . . . . . . Slashing . | . . . . . . Piercing . | . . . . . . Highest Corruption 6 | . . . . . 6 Average Corruption 4 | . . . . . 4 Corruption Purged . | . . . . . . Corruption Blocked . | . . . . . . Effects 1 | . . . . . 1 Matter Fused 1 | . . . . . 1 Overload Shots . | . . . . . . Overflow Damage 123 | . 110 9 . 4 . Projectiles . | . . . . . . Explosions 123 | . 110 9 . 4 . Melee . | . . . . . . Knockbacks . | . . . . . . Impact . | . . . . . . Kinetic . | . . . . . . Secondary . | . . . . . . Self-Inflicted Damage 98 | . 98 . . . . Shots 1 | . 1 . . . . Rammed 8 | . 5 2 1 . . Targets Rammed 10 | . 6 3 1 . . Kicked . | . . . . . . Crushed 2 | . 1 1 . . . Highest Temperature 155 | . 11 155 40 108 59 Average Temperature 40 | . 3 42 23 47 24 Received Heat Transfer 1053 | . 633 294 . . 126 Siege Activations . | . . . . . . Robots Corrupted . | . . . . . . Combat Hostiles . | . . . . . . Parts Fried . | . . . . . . Impact Corruptions . | . . . . . . Robots Melted . | . . . . . . Combat Hostiles . | . . . . . . Parts Melted 10 | . . 10 . . . Heat Transferred 5030 | . 409 4476 37 72 36 Parts Sabotaged . | . . . . . . Parts Stolen . | . . . . . . Parts Stripped . | . . . . . . Power Chain Reactions . | . . . . . . Missiles Intercepted . | . . . . . . Alert | -11 -10 -9 -9 -9 -8 ------- Run | Jun Mat Mat Min Exi Min Peak Influence 947 | . 481 947 316 . . Initial 316 | . . 202 316 . . Average 375 | . 143 713 98 . . Maximum Alert Level 3 | . 2 3 1 . . Low Security (%) 43 | 100 73 . 77 . 100 Level 1 13 | . 20 3 22 . . Level 2 16 | . 6 34 . . . Level 3 27 | . . 61 . . . Level 4 . | . . . . . . Level 5 . | . . . . . . High Security . | . . . . . . Max Security . | . . . . . . Squads Dispatched 13 | . 7 6 . . . Investigation 8 | . 5 3 . . . Extermination . | . . . . . . Reinforcement 3 | . 2 1 . . . Assault 2 | . . 2 . . . Garrison . | . . . . . . Intercept . | . . . . . . Searches Triggered . | . . . . . . Construction Impeded . | . . . . . . Haulers Reinforced . | . . . . . . Active Scanning Responses . | . . . . . . Cargo Convoy Interrupts . | . . . . . . Stealth | -11 -10 -9 -9 -9 -8 --------- Run | Jun Mat Mat Min Exi Min Distress Signals 7 | . 5 2 . . . Communications Jammed . | . . . . . . Distress Signals . | . . . . . . Times Spotted 103 | . 38 49 . 12 4 Peak Tracking Total 10 | . 6 10 . 9 4 Tactical Retreats 13 | . 3 9 . 1 . Traps | -11 -10 -9 -9 -9 -8 ------- Run | Jun Mat Mat Min Exi Min Traps Triggered 4 | . 3 1 . . . Indirectly . | . . . . . . Trap Hack Attempts . | . . . . . . Triggered . | . . . . . . Disarmed . | . . . . . . Reprogrammed . | . . . . . . Reused . | . . . . . . Traps Extracted . | . . . . . . Installed . | . . . . . . Triggered . | . . . . . . Exploded 3 | . . . . 3 . Machines | -11 -10 -9 -9 -9 -8 ---------- Run | Jun Mat Mat Min Exi Min Machines Disabled 4 | . 1 1 . 2 . Max in Single Turn 1 | . 1 1 . 1 . Machines Repaired . | . . . . . . Machines Sabotaged . | . . . . . . Overloaded Fab Kills . | . . . . . . Hacking | -11 -10 -9 -9 -9 -8 --------- Run | Jun Mat Mat Min Exi Min Machines Accessed 18 | . 6 10 . 2 . Terminals 10 | . 3 7 . . . Fabricators . | . . . . . . Repair Stations 2 | . 1 1 . . . Recycling Units 4 | . 2 2 . . . Scanalyzers . | . . . . . . Garrison Access . | . . . . . . Total Hacks 48 | . 16 26 . 6 . Successful 29 | . 8 15 . 6 . Failed 19 | . 8 11 . . . Catastrophic 4 | . . 4 . . . Database Lockouts . | . . . . . . Manual 32 | . 12 19 . 1 . Terminals 31 | . 10 21 . . . Fabricators . | . . . . . . Repair Stations 5 | . 3 2 . . . Recycling Units 6 | . 3 3 . . . Scanalyzers . | . . . . . . Garrison Access . | . . . . . . Terminal Hacks 16 | . 2 8 . 6 . Record 6 | . . 1 . 5 . Robot Analysis 3 | . . 3 . . . Branch Access Points 1 | . . 1 . . . Terminal Index 1 | . 1 . . . . Alert Level 1 | . . 1 . . . Unreport Threat 1 | . . 1 . . . Hauler Manifests 2 | . 1 1 . . . EX-Prototype ID Bank 1 | . . . . 1 . Fabricator Hacks . | . . . . . . Repair Station Hacks 4 | . 2 2 . . . Scan Component 2 | . 1 1 . . . Repair 2 | . 1 1 . . . Recycling Unit Hacks 1 | . . 1 . . . Retrieve Components 1 | . . 1 . . . Scanalyzer . | . . . . . . Garrison Access Hacks . | . . . . . . Unauthorized Hacks 8 | . 4 4 . . . Terminals 4 | . 2 2 . . . Botnet 4 | . 2 2 . . . Fabricators . | . . . . . . Repair Stations . | . . . . . . Recycling Units 4 | . 2 2 . . . Tunnel 4 | . 2 2 . . . Scanalyzers . | . . . . . . Garrison Access . | . . . . . . Data Cores Recovered . | . . . . . . Used . | . . . . . . Hacking Detections 13 | . 4 9 . . . Full Trace Events 1 | . 1 . . . . Feedback Events . | . . . . . . Feedback Blocked . | . . . . . . Robot Schematics Acquired . | . . . . . . Robots Built . | . . . . . . Authchips . | . . . . . . Time . | . . . . . . Total Robot Build Rating . | . . . . . . Part Schematics Acquired . | . . . . . . Parts Built . | . . . . . . Authchips . | . . . . . . Time . | . . . . . . Total Part Build Rating . | . . . . . . Parts Repaired 2 | . 1 1 . . . Time 64 | . 26 38 . . . Parts Recycled . | . . . . . . Recycled Matter . | . . . . . . Retrieved Matter . | . . . . . . Retrieved Components 9 | . . 9 . . . Parts Scanalyzed . | . . . . . . Part Schematics Acquired . | . . . . . . Parts Damaged . | . . . . . . Bothacking | -11 -10 -9 -9 -9 -8 ------------ Run | Jun Mat Mat Min Exi Min Used RIF Installer . | . . . . . . Robots Hacked . | . . . . . . Non-combat . | . . . . . . Combat . | . . . . . . Robot Hacks Applied . | . . . . . . Relay Couplers Released . | . . . . . . Fabnet Peak Effective % . | . . . . . . Robots Rewired . | . . . . . . Allies Hacked . | . . . . . . Hacks Repelled . | . . . . . . Allies | -11 -10 -9 -9 -9 -8 -------- Run | Jun Mat Mat Min Exi Min Total Allies 1 | . . . 1 . . Largest Group 1 | . . . 1 . . Highest-Rated Group 31 | . . . 31 . . Highest-Rated Ally 31 | . . . 31 . . Total Orders . | . . . . . . Ally Attacks . | . . . . . . Total Damage . | . . . . . . Kills . | . . . . . . Allies Corrupted . | . . . . . . Allies Melted . | . . . . . . Intel | -11 -10 -9 -9 -9 -8 ------- Run | Jun Mat Mat Min Exi Min Robot Analysis Total 3 | . . 3 . . . Derelict Logs Recovered 1 | . . . 1 . . Drone Launches . | . . . . . . Drone Recoveries . | . . . . . . Exploration | -11 -10 -9 -9 -9 -8 ------------- Run | Jun Mat Mat Min Exi Min Turns Passed 7965 | 71 1162 2430 1756 2446 100 Spaces Moved 2478 | 52 447 669 547 718 45 Core 26 | 25 1 . . . . Treads 2379 | 27 446 669 547 690 . Legs 73 | . . . . 28 45 Wheels . | . . . . . . Hover . | . . . . . . Flight . | . . . . . . Fastest Speed 50 | 50 150 160 320 190 190 Average Speed 275 | 116 159 292 320 314 190 Slowest Speed 330 | 160 160 320 320 330 190 Overloaded Moves . | . . . . . . Propulsion Burnouts . | . . . . . . Robots Hopped . | . . . . . . Cave-ins Triggered . | . . . . . . Exploration Rate (%) 55 | 4 75 63 99 70 19 Regions Visited 5 Branch Regions 3 Pre-discovered Areas 5 | . 2 2 . 1 . Known Exits Taken 1 | . . 1 . . . Unknown Exits Taken 4 | 1 1 . 1 1 . Scrap Searched 3 | . . . 3 . . Spaces Dug 12 | . . 12 . . . Terrain Destroyed 62 | . 22 27 . 13 . Melee . | . . . . . . Projectile . | . . . . . . AOE 62 | . 22 27 . 13 . Terrain Rammed . | . . . . . . Walls Destroyed . | . . . . . . Machines Disabled . | . . . . . . Actions | -11 -10 -9 -9 -9 -8 --------- Run | Jun Mat Mat Min Exi Min Total 3133 | 59 690 955 552 823 54 Wait 217 | . 102 105 2 7 1 Move 2473 | 51 446 668 546 717 45 Hop . | . . . . . . Pick Up 65 | 2 16 33 1 13 . Fast Attach 23 | 6 6 6 . 5 . Attach 25 | . 7 5 . 10 3 Detach 4 | . . . . 4 . Swap 28 | . 3 12 . 10 3 Drop 46 | . 5 25 1 15 . Fire 242 | . 99 98 1 42 2 Melee . | . . . . . . Ram . | . . . . . . Kick . | . . . . . . Crush 10 | . 6 3 1 . . Escape Stasis . | . . . . . . Rewire . | . . . . . . Trap . | . . . . . . Miscellaneous . | . . . . . . Route ------- -11/Junkyard -10/Materials (discovered 2 exits: *Mat x2) -9/Materials (discovered 3 exits: [*Mat x2] / *Min) -9/Mines (discovered 3 exits: [*Mat x2] / *Exi) -9/Exiles -8/Mines History --------- Turn | Location | Event 41 | -11/Junkyard | Discovered new exit (range 15) 72 | -11/Junkyard | Entered Materials 254 | -10/Materials | Discovered new exit (range 4) 312 | -10/Materials | Repaired Lgt. Treads 333 | -10/Materials | Build established: Mutant 855 | -10/Materials | Discovered new exit (range 14) 1041 | -10/Materials | Core integrity fell below 50% 1130 | -10/Materials | Core integrity fell below 20% 1202 | -10/Materials | Destroyed 9 combat bots 1234 | -10/Materials | Entered another Materials area 1234 | -9/Materials | Evolved 2 slots: Utility x1, Weapon x1 1363 | -9/Materials | Destroyed 8 combat bots 1854 | -9/Materials | Discovered new exit (range 3) 1903 | -9/Materials | Build established: Tank 2296 | -9/Materials | Repaired Imp. Heat Sink 2434 | -9/Materials | First assault squad dispatched 2757 | -9/Materials | Discovered new exit (range 3) 3284 | -9/Materials | Identified exit to Mines 3664 | -9/Materials | Entered Mines 3712 | -9/Mines | Met a Derelict bent on vengeance 4161 | -9/Mines | Discovered new exit (range 6) 4510 | -9/Mines | Received a Mining Laser from a helpful Derelict 4697 | -9/Mines | Discovered new exit (range 14) 4774 | -9/Mines | Deemed a non-threat by the Exiles lab entrance 5407 | -9/Mines | Discovered new exit (range 5) 5420 | -9/Mines | Entered Exiles 5494 | -9/Exiles | Met 8R-AWN 5552 | -9/Exiles | Met EX-HEX 5721 | -9/Exiles | Met EX-DEC 5779 | -9/Exiles | Learned location of Zion (-6) 5977 | -9/Exiles | Met EX-BIN 6936 | -9/Exiles | Aligned with FarCom system 6940 | -9/Exiles | Given EX-Vault access code 7013 | -9/Exiles | Opened EX-Vault 7032 | -9/Exiles | Found Cloak of Protection 7097 | -9/Exiles | Warned to stay clear of 0b10 Research branches 7326 | -9/Exiles | Attacked by the Exiles 7537 | -9/Exiles | Lost 5 parts (1n1u3w) 7549 | -9/Exiles | Destroyed 8R-AWN 7574 | -9/Exiles | Found Prototype Processor 7597 | -9/Exiles | Found Prototype Device 7597 | -9/Exiles | Identified AS-neutralizer No. 17b 7728 | -9/Exiles | Core integrity fell below 50% 7842 | -9/Exiles | Discovered new exit (range 10) 7866 | -9/Exiles | Entered Mines 7931 | -8/Mines | NK-0LA came to Exiles' defense 7941 | -8/Mines | Core integrity fell below 20% 7966 | -8/Mines | Destroyed by B-36 Bruiser with Hammer Last Messages --------------- 07799_ Identified Adv. Myomer Leg. 07810_ Dropped Adv. Treads. 07811_ Acquired Adv. Myomer Leg. 07814_ Acquired Adv. Treads. 07842_ EXIT=FOUND 07862_ Dropped Cloak of Protection. A strange signal echoes through the mines. LOCATION=UNKNOWN GOAL=ESCAPE 07867_ T-07 Excavator is excavating. 07931_ NK-0LA: "I came as fast as I could... Wait, it was you!" 07934_ Hvy. Assault Rifle destroyed. 07937_ NK-0LA suffers critical hit (Burn). 07938_ Hvy. Assault Rifle destroyed. 07938_ Imp. Light Armor Plating destroyed. 07944_ Critical hit (Burn: +37). 07953_ System corrupted: Matter fused (-10). 07956_ Hvy. Ion Engine destroyed. 07956_ Critical hit (Burn: +37). 07965_ K-01 Serf collects debris. Map ----- +----------------------------------------------------+ | ???????????????????????????????????????????????? | | ???????????????????????????????????????????????? | | ???????????????????????????????????????????????? | | ???????????????????????????????????????????????? | | ???????????????????????????????????????????????? | | ???????????????????????????????????????????????? | | ???????????????????????????????????????????????? | | ???????????????????????????????????????????????? | | ???????????????????????????????????????????????? | | ?????????###???????????????????????????????????? | | ????????## #??????????????????????????????????? | | ????????# #?????????????????????????????????? | | ????????# ##???????????????????????????????? | | ?????????# #???????????????????????????????? | | ??????????# #???????????????????????????????? | | ???????????# ##??????????????????????????????? | | ???????????# ##?????????????????????????????? | | ????????????# ####??????????????????????????? | | ????????????## ##?????????????????????????? | | ?????????????### #?????????????????????????? | | ???????????????## #?????????????????????????? | | ???????????????## #?????????????????????????? | | ???????????????# ##???#?????????????????????? | | ???????????????# ##??? #?????????????????????? | | ??????????????## ##### ## #?????????????????? | | ????????????### x b@ k #?????????????????? | | ???????????## g #?????????????????? | | ???????????# #### #?????????????????? | | ???????????# #??# #????????????????? | | ???????????## #??## #????????????????? | | ????????????### ##???# #????????????????? | | ??????????????## ##???# #???????????????? | | ???????????????# ##### ??????????????? | | ???????????????# ?????????????? | | ???????????????# ????????????? | | ??????????????## ##### ????????????? | | ?????????###### ##?????? ????????????? | | ?????????# #??????? ??????????????? | | ?????????# ##???????? ????????????????? | | ?????????# # ##???????????????????????????? | | ?????????##?# ##????????????????????????????? | | ????????????# ##?????????????????????????????? | | ????????????# ##?????????????????????????????? | | ???????????## #####?????????????????????????? | | ??????????## ####??????????????????????? | | ????????### #??????????????????????? | | ???????## """ #?????????????????????? | | ???????# """ #?????????????????????? | | ??????# """ ???????????????????????? | | ??????# ## ????????????????????? | +----------------------------------------------------+ Best States ------------- Heat Dissipation 54 Energy Generation 14 Energy Capacity 280 Matter Stores 300 Matter Capacity 300 Sight Range 16 Terrain Scan Density 10 Armor Coverage 600 Evasion (%) 50 Recoil Reduction 2 Item Schematics ----------------- None Robot Schematics ------------------ None Fabricated ------------ Nothing Alien Tech Used ----------------- None Achievements -------------- None Challenges ------------ None Game ------ Seed FieldCannonPenetrator Manual? 0 Play Time 00:35:05 Cumulative 1660.9 hours Start 2023.03.09 @ 16:08:51 End 2023.03.09 @ 16:44:12 Sessions 1 Manual Loads 0 Difficulty Rogue Special Mode None Game No. 588 Rogue 588 Adventurer 0 Explorer 0 Win Type - Total 125 Types 27/13/52/7/1/2/21/1/1 Lore% 97 Gallery% 97 Achievement% 87 Wizard Run 0 Options --------- ASCII 0 Keyboard 0 Movement Numpad Keybinds 0 Fullscreen 1 Font 18/SmallcapsGlow Map View 76x50 Tactical HUD 1 Map Filters NONE Filters NONE Steam 1 RUN: 63f0e1eb-80b9-4d3d-a53e-4d9835974439